Body Name,Date,Transaction Number,Invoice Number,Net Amount,VAT,Supplier Name,Supplier ID,Expense Area,Expense Type,Expense Code
Redditch Borough Council,12/09/2018,305810,1426,550.00 ,0.00 ,3 Lions Removals,6519,Bed And Breakfast Accom.,Other Fees,4360
Redditch Borough Council,19/09/2018,306224,4731,"2,995.00 ",599.00 ,Access & Automation Ltd,102753,Rbc Balance Sheet,Contract Payments,8131
Redditch Borough Council,26/09/2018,305135,9600190869,535.05 ,107.01 ,Acivico,64800,Civil Emergency Planning,Other Local Authorities,5009
Redditch Borough Council,12/09/2018,306218,ARCMIN/99070252,"2,333.20 ",466.64 ,Advanced Business Solutions,114,Rbc It Costs,Ict,4500
Redditch Borough Council,12/09/2018,306220,ARCMIN/99070251,"4,506.99 ",901.40 ,Advanced Business Solutions,114,Rbc It Costs,Ict,4500
Redditch Borough Council,19/09/2018,305781,CD970681857,"1,159.00 ",231.80 ,Agrovista (Sherriff) Uk Ltd,5562,Grounds Maint - Parks,Materials,4170
Redditch Borough Council,19/09/2018,305082,00297222,"6,615.03 ","1,323.01 ",Anthony Collins Solicitors Llp,1439,Policy And Management,Professional Fees,4350
Redditch Borough Council,05/09/2018,305683,18002,544.50 ,0.00 ,Appletree Guest House,81,Bed And Breakfast Accom.,Rents & Service Charge,3350
Redditch Borough Council,26/09/2018,306876,18012,"2,227.50 ",0.00 ,Appletree Guest House,81,Bed And Breakfast Accom.,Rents & Service Charge,3350
Redditch Borough Council,26/09/2018,306877,18012,"2,528.00 ",0.00 ,Appletree Guest House,81,Bed And Breakfast Accom.,Rents & Service Charge,3350
Redditch Borough Council,05/09/2018,305433,SW00210347,"2,990.00 ",598.00 ,Arden Construction Ltd,2033,Hra Responsive Repairs,Building Maintenance,3100
Redditch Borough Council,05/09/2018,305516,SW00210538,654.31 ,130.86 ,Arden Construction Ltd,2033,Hra Responsive Repairs,Building Maintenance,3100
Redditch Borough Council,05/09/2018,305532,SW00210522,"1,013.80 ",202.76 ,Arden Construction Ltd,2033,Hra Responsive Repairs,Building Maintenance,3100
Redditch Borough Council,05/09/2018,305535,SW00210518,838.18 ,167.64 ,Arden Construction Ltd,2033,Hra Responsive Repairs,Building Maintenance,3100
Redditch Borough Council,05/09/2018,305536,SW00210521,563.18 ,112.64 ,Arden Construction Ltd,2033,Hra Responsive Repairs,Building Maintenance,3100
Redditch Borough Council,26/09/2018,306386,SW00210596,"2,784.99 ",557.00 ,Arden Construction Ltd,2033,Hra Responsive Repairs,Building Maintenance,3100
Redditch Borough Council,26/09/2018,306388,SW00210588,"2,995.99 ",599.20 ,Arden Construction Ltd,2033,Hra Responsive Repairs,Building Maintenance,3100
Redditch Borough Council,26/09/2018,306399,SW00210578,"1,671.00 ",334.20 ,Arden Construction Ltd,2033,Hra Responsive Repairs,Building Maintenance,3100
Redditch Borough Council,26/09/2018,306400,SW00210579,"1,236.00 ",247.20 ,Arden Construction Ltd,2033,Hra Responsive Repairs,Building Maintenance,3100
Redditch Borough Council,26/09/2018,306401,SW00210582,660.16 ,132.03 ,Arden Construction Ltd,2033,Hra Responsive Repairs,Building Maintenance,3100
Redditch Borough Council,26/09/2018,306402,SW00210583,729.00 ,145.80 ,Arden Construction Ltd,2033,Hra Responsive Repairs,Building Maintenance,3100
Redditch Borough Council,26/09/2018,306403,SW00210584,585.60 ,117.12 ,Arden Construction Ltd,2033,Hra Responsive Repairs,Building Maintenance,3100
Redditch Borough Council,26/09/2018,306405,SW00210586,"1,171.00 ",234.20 ,Arden Construction Ltd,2033,Hra Responsive Repairs,Building Maintenance,3100
Redditch Borough Council,26/09/2018,306406,SW00210587,"1,264.00 ",252.80 ,Arden Construction Ltd,2033,Hra Responsive Repairs,Building Maintenance,3100
Redditch Borough Council,26/09/2018,306407,SW00210590,"1,261.00 ",252.20 ,Arden Construction Ltd,2033,Hra Responsive Repairs,Building Maintenance,3100
Redditch Borough Council,26/09/2018,306408,SW00210591,886.00 ,177.20 ,Arden Construction Ltd,2033,Hra Responsive Repairs,Building Maintenance,3100
Redditch Borough Council,26/09/2018,306410,SW00210593,"1,392.00 ",278.40 ,Arden Construction Ltd,2033,Hra Responsive Repairs,Building Maintenance,3100
Redditch Borough Council,26/09/2018,306411,SW00210594,"1,285.44 ",257.09 ,Arden Construction Ltd,2033,Hra Responsive Repairs,Building Maintenance,3100
Redditch Borough Council,26/09/2018,306416,SW00210554,"1,376.88 ",275.38 ,Arden Construction Ltd,2033,Hra Responsive Repairs,Building Maintenance,3100
Redditch Borough Council,26/09/2018,306417,SW00210552,527.21 ,105.44 ,Arden Construction Ltd,2033,Hra Responsive Repairs,Building Maintenance,3100
Redditch Borough Council,26/09/2018,306418,SW00210548,680.14 ,136.03 ,Arden Construction Ltd,2033,Hra Responsive Repairs,Building Maintenance,3100
Redditch Borough Council,26/09/2018,306420,SW00210546,529.43 ,105.89 ,Arden Construction Ltd,2033,Hra Responsive Repairs,Building Maintenance,3100
Redditch Borough Council,26/09/2018,306438,SW00210549,"1,164.24 ",232.85 ,Arden Construction Ltd,2033,Hra Responsive Repairs,Building Maintenance,3100
Redditch Borough Council,26/09/2018,306441,SW00210553,"2,642.00 ",528.40 ,Arden Construction Ltd,2033,Hra Responsive Repairs,Building Maintenance,3100
Redditch Borough Council,26/09/2018,306442,SW00210555,833.45 ,166.69 ,Arden Construction Ltd,2033,Hra Responsive Repairs,Building Maintenance,3100
Redditch Borough Council,26/09/2018,306443,SW00210556,886.00 ,177.20 ,Arden Construction Ltd,2033,Hra Responsive Repairs,Building Maintenance,3100
Redditch Borough Council,05/09/2018,305823,1211631,875.00 ,175.00 ,Ashtead Plant Hire Co Ltd - T/A Live Trakway,102666,Countryside Rec And M'Ment,Furniture & Equipment Rental,4001
Redditch Borough Council,26/09/2018,307039,7791,"1,700.00 ",340.00 ,Autocross Euroshel Ltd,2642,Co-Ordination,Other Fees,4360
Redditch Borough Council,05/09/2018,301308,452851,765.99 ,153.20 ,Bell Plumbing Supplies,6981,Planned,Materials,4170
Redditch Borough Council,05/09/2018,305753,467018,886.12 ,177.22 ,Bell Plumbing Supplies,6981,Rbc Balance Sheet,Contract Payments,8131
Redditch Borough Council,05/09/2018,305754,467022,743.44 ,148.69 ,Bell Plumbing Supplies,6981,Rbc Balance Sheet,Contract Payments,8131
Redditch Borough Council,05/09/2018,305755,467023,868.36 ,173.67 ,Bell Plumbing Supplies,6981,Rbc Balance Sheet,Contract Payments,8131
Redditch Borough Council,05/09/2018,305756,467016,910.38 ,182.08 ,Bell Plumbing Supplies,6981,Rbc Balance Sheet,Contract Payments,8131
Redditch Borough Council,05/09/2018,305757,467021,778.68 ,155.74 ,Bell Plumbing Supplies,6981,Rbc Balance Sheet,Contract Payments,8131
Redditch Borough Council,05/09/2018,305758,467017,939.24 ,187.85 ,Bell Plumbing Supplies,6981,Rbc Balance Sheet,Contract Payments,8131
Redditch Borough Council,05/09/2018,305759,467019,887.73 ,177.55 ,Bell Plumbing Supplies,6981,Rbc Balance Sheet,Contract Payments,8131
Redditch Borough Council,05/09/2018,305762,467024,857.25 ,171.45 ,Bell Plumbing Supplies,6981,Rbc Balance Sheet,Contract Payments,8131
Redditch Borough Council,12/09/2018,304786,464296,904.93 ,180.99 ,Bell Plumbing Supplies,6981,Rbc Balance Sheet,Contract Payments,8131
Redditch Borough Council,12/09/2018,304791,464295,"1,140.15 ",228.03 ,Bell Plumbing Supplies,6981,Rbc Balance Sheet,Contract Payments,8131
Redditch Borough Council,12/09/2018,306170,468229,"1,231.66 ",246.33 ,Bell Plumbing Supplies,6981,Rbc Balance Sheet,Contract Payments,8131
Redditch Borough Council,12/09/2018,306173,468231,756.24 ,151.25 ,Bell Plumbing Supplies,6981,Rbc Balance Sheet,Contract Payments,8131
Redditch Borough Council,19/09/2018,306336,469567,838.38 ,167.68 ,Bell Plumbing Supplies,6981,Rbc Balance Sheet,Contract Payments,8131
Redditch Borough Council,19/09/2018,306337,469566,625.47 ,125.09 ,Bell Plumbing Supplies,6981,Rbc Balance Sheet,Contract Payments,8131
Redditch Borough Council,19/09/2018,306338,469561,"1,117.60 ",223.52 ,Bell Plumbing Supplies,6981,Rbc Balance Sheet,Contract Payments,8131
Redditch Borough Council,19/09/2018,306339,469564,747.68 ,149.54 ,Bell Plumbing Supplies,6981,Rbc Balance Sheet,Contract Payments,8131
Redditch Borough Council,19/09/2018,306340,469568,768.68 ,153.74 ,Bell Plumbing Supplies,6981,Rbc Balance Sheet,Contract Payments,8131
Redditch Borough Council,19/09/2018,306341,469563,749.12 ,149.82 ,Bell Plumbing Supplies,6981,Rbc Balance Sheet,Contract Payments,8131
Redditch Borough Council,19/09/2018,306342,469562,772.02 ,154.40 ,Bell Plumbing Supplies,6981,Rbc Balance Sheet,Contract Payments,8131
Redditch Borough Council,26/09/2018,306856,471037,750.06 ,150.01 ,Bell Plumbing Supplies,6981,Rbc Balance Sheet,Contract Payments,8131
Redditch Borough Council,26/09/2018,306857,471036,0.00 ,100.00 ,Bell Plumbing Supplies,6981,Crossgate Stocks,Stock Account (Cedar),1201
Redditch Borough Council,26/09/2018,305563,EMW/791885756,510.72 ,0.00 ,Berrymans Lace Mawer,2340,Vat Control Account,Vat Input Tax Adjustments,2994
Redditch Borough Council,05/09/2018,305808,1112696,"1,400.00 ",280.00 ,Big Bash And Corporate Entertainment Ltd,5111,Museums And Gallaries,Other Fees,4360
Redditch Borough Council,26/09/2018,306623,118,500.00 ,0.00 ,Big Frog Productions,6922,Theatre Management,Advertising Publicity & Prom,4700
Redditch Borough Council,19/09/2018,306698,DEDS SEP 18,741.14 ,0.00 ,Birmingham Hospital Saturday Fund,1508,Rbc Balance Sheet,Payroll Deductions,1488
Redditch Borough Council,26/09/2018,307109,GRANT 18/19,"4,980.00 ",0.00 ,Britten Street Hub Cic,5820,Grants To Vol Sector,Grants & Subscriptions,4650
Redditch Borough Council,05/09/2018,305546,800841463,"2,070.00 ",414.00 ,Bromsgrove District Council,1114,Public Health,Other Fees,4360
Redditch Borough Council,05/09/2018,305546,800841463,"132,250.00 ",0.00 ,Bromsgrove District Council,1114,Public Health,Other Local Authorities,5009
Redditch Borough Council,19/09/2018,305856,800842885,"1,258.70 ",251.74 ,Bromsgrove District Council,1114,Cannock Lifeline,Ict,4500
Redditch Borough Council,19/09/2018,305856,800842885,320.25 ,64.05 ,Bromsgrove District Council,1114,Hra Responsive Repairs,Furniture & Equipment Purchase,4000
Redditch Borough Council,19/09/2018,305856,800842885,79.85 ,15.97 ,Bromsgrove District Council,1114,Revenues,Ict,4500
Redditch Borough Council,26/09/2018,305855,800842877,591.00 ,118.20 ,Bromsgrove District Council,1114,Community Development,Ict,4500
Redditch Borough Council,26/09/2018,305855,800842877,360.00 ,72.00 ,Bromsgrove District Council,1114,Economic Development,Ict,4500
Redditch Borough Council,26/09/2018,305855,800842877,180.00 ,36.00 ,Bromsgrove District Council,1114,Golf Courses,Ict,4500
Redditch Borough Council,26/09/2018,305855,800842877,120.00 ,24.00 ,Bromsgrove District Council,1114,Museums And Gallaries,Ict,4500
Redditch Borough Council,26/09/2018,305855,800842877,180.00 ,36.00 ,Bromsgrove District Council,1114,Rbc It Costs,Ict,4500
Redditch Borough Council,26/09/2018,305855,800842877,180.00 ,36.00 ,Bromsgrove District Council,1114,St Davids House,Ict,4500
Redditch Borough Council,26/09/2018,306565,800843581,"4,200.00 ",840.00 ,Bromsgrove District Council,1114,Rbc Balance Sheet,Software,8162
Redditch Borough Council,26/09/2018,307234,800846880,"3,500.00 ",700.00 ,Bromsgrove District Council,1114,Bromsgrove Lifeline,B'Grove Shared Services Cost,5012
Redditch Borough Council,26/09/2018,307234,800846880,"30,330.25 ","6,066.05 ",Bromsgrove District Council,1114,Building Control,B'Grove Shared Services Cost,5012
Redditch Borough Council,26/09/2018,307234,800846880,"16,702.50 ","3,340.50 ",Bromsgrove District Council,1114,Business Trans Costs,B'Grove Shared Services Cost,5012
Redditch Borough Council,26/09/2018,307234,800846880,"21,904.75 ","4,380.95 ",Bromsgrove District Council,1114,Chief Executive,B'Grove Shared Services Cost,5012
Redditch Borough Council,26/09/2018,307234,800846880,"15,294.75 ","3,058.95 ",Bromsgrove District Council,1114,Comms - Graphics And Media,B'Grove Shared Services Cost,5012
Redditch Borough Council,26/09/2018,307234,800846880,"15,550.50 ","3,110.10 ",Bromsgrove District Council,1114,Communications,B'Grove Shared Services Cost,5012
Redditch Borough Council,26/09/2018,307234,800846880,"49,237.00 ","9,847.40 ",Bromsgrove District Council,1114,Community Parks & Open Spaces,B'Grove Shared Services Cost,5012
Redditch Borough Council,26/09/2018,307234,800846880,"26,858.50 ","5,371.70 ",Bromsgrove District Council,1114,Crematoria,B'Grove Shared Services Cost,5012
Redditch Borough Council,26/09/2018,307234,800846880,"21,292.50 ","4,258.50 ",Bromsgrove District Council,1114,Electoral Services,B'Grove Shared Services Cost,5012
Redditch Borough Council,26/09/2018,307234,800846880,"19,029.50 ","3,805.90 ",Bromsgrove District Council,1114,Engineering And Design,B'Grove Shared Services Cost,5012
Redditch Borough Council,26/09/2018,307234,800846880,"91,157.00 ","18,231.40 ",Bromsgrove District Council,1114,Env Services Mgmt & Support,B'Grove Shared Services Cost,5012
Redditch Borough Council,26/09/2018,307234,800846880,"65,182.50 ","13,036.50 ",Bromsgrove District Council,1114,Env Services Pool (Core Team 4,B'Grove Shared Services Cost,5012
Redditch Borough Council,26/09/2018,307234,800846880,"5,217.75 ","1,043.55 ",Bromsgrove District Council,1114,Equalities,B'Grove Shared Services Cost,5012
Redditch Borough Council,26/09/2018,307234,800846880,"15,993.00 ","3,198.60 ",Bromsgrove District Council,1114,Executive Director F&R,B'Grove Shared Services Cost,5012
Redditch Borough Council,26/09/2018,307234,800846880,"16,910.75 ","3,382.15 ",Bromsgrove District Council,1114,Grounds Maint - Cemeteries,B'Grove Shared Services Cost,5012
Redditch Borough Council,26/09/2018,307234,800846880,"13,106.75 ","2,621.35 ",Bromsgrove District Council,1114,Head Of Business Transformatio,B'Grove Shared Services Cost,5012
Redditch Borough Council,26/09/2018,307234,800846880,"11,869.25 ","2,373.85 ",Bromsgrove District Council,1114,Head Of Customer Services,B'Grove Shared Services Cost,5012
Redditch Borough Council,26/09/2018,307234,800846880,"13,131.75 ","2,626.35 ",Bromsgrove District Council,1114,"Head Of Legal, Equal & Dem Ser",B'Grove Shared Services Cost,5012
Redditch Borough Council,26/09/2018,307234,800846880,"13,200.75 ","2,640.15 ",Bromsgrove District Council,1114,Head Of Leisure & Cultural Ser,B'Grove Shared Services Cost,5012
Redditch Borough Council,26/09/2018,307234,800846880,"106,200.75 ","21,240.15 ",Bromsgrove District Council,1114,Household Waste Collection,B'Grove Shared Services Cost,5012
Redditch Borough Council,26/09/2018,307234,800846880,"51,819.25 ","10,363.85 ",Bromsgrove District Council,1114,Housing Policy,B'Grove Shared Services Cost,5012
Redditch Borough Council,26/09/2018,307234,800846880,"124,293.00 ","24,858.60 ",Bromsgrove District Council,1114,Ict Services,B'Grove Shared Services Cost,5012
Redditch Borough Council,26/09/2018,307234,800846880,552.75 ,110.55 ,Bromsgrove District Council,1114,Land Charges,B'Grove Shared Services Cost,5012
Redditch Borough Council,26/09/2018,307234,800846880,"81,371.25 ","16,274.25 ",Bromsgrove District Council,1114,Legal Services,B'Grove Shared Services Cost,5012
Redditch Borough Council,26/09/2018,307234,800846880,"31,301.25 ","6,260.25 ",Bromsgrove District Council,1114,Members & Committee Services,B'Grove Shared Services Cost,5012
Redditch Borough Council,26/09/2018,307234,800846880,"22,729.25 ","4,545.85 ",Bromsgrove District Council,1114,Minor Works Team,B'Grove Shared Services Cost,5012
Redditch Borough Council,26/09/2018,307234,800846880,"1,243.00 ",248.60 ,Bromsgrove District Council,1114,P A & Directorate Support,B'Grove Shared Services Cost,5012
Redditch Borough Council,26/09/2018,307234,800846880,"135,138.75 ","27,027.75 ",Bromsgrove District Council,1114,Planning Policy,B'Grove Shared Services Cost,5012
Redditch Borough Council,26/09/2018,307234,800846880,"16,133.25 ","3,226.65 ",Bromsgrove District Council,1114,Policy,B'Grove Shared Services Cost,5012
Redditch Borough Council,26/09/2018,307234,800846880,"2,820.00 ",564.00 ,Bromsgrove District Council,1114,Public Health,B'Grove Shared Services Cost,5012
Redditch Borough Council,26/09/2018,307234,800846880,"23,145.50 ","4,629.10 ",Bromsgrove District Council,1114,Rbc Hedgecutting,B'Grove Shared Services Cost,5012
Redditch Borough Council,26/09/2018,307234,800846880,"76,558.50 ","15,311.70 ",Bromsgrove District Council,1114,Rbc It Costs,B'Grove Shared Services Cost,5012
Redditch Borough Council,26/09/2018,307234,800846880,"73,412.75 ","14,682.55 ",Bromsgrove District Council,1114,Rbc Vehicle Workhop,B'Grove Shared Services Cost,5012
Redditch Borough Council,26/09/2018,307234,800846880,"13,228.50 ","2,645.70 ",Bromsgrove District Council,1114,Redditch Partnership (Was 0421,B'Grove Shared Services Cost,5012
Redditch Borough Council,26/09/2018,307234,800846880,"282,679.75 ","56,535.95 ",Bromsgrove District Council,1114,Redditch Place Teams General,B'Grove Shared Services Cost,5012
Redditch Borough Council,26/09/2018,307234,800846880,"12,356.25 ","2,471.25 ",Bromsgrove District Council,1114,Register Of Electors,B'Grove Shared Services Cost,5012
Redditch Borough Council,26/09/2018,307234,800846880,"27,662.25 ","5,532.45 ",Bromsgrove District Council,1114,Stores Oncost Account,B'Grove Shared Services Cost,5012
Redditch Borough Council,26/09/2018,307234,800846880,"32,346.50 ","6,469.30 ",Bromsgrove District Council,1114,Strategic Routes & Tractors,B'Grove Shared Services Cost,5012
Redditch Borough Council,26/09/2018,307234,800846880,"14,774.00 ","2,954.80 ",Bromsgrove District Council,1114,Sweepers & Hiabs,B'Grove Shared Services Cost,5012
Redditch Borough Council,26/09/2018,307234,800846880,"1,772.50 ",354.50 ,Bromsgrove District Council,1114,Travellers & Unauth Campers,B'Grove Shared Services Cost,5012
Redditch Borough Council,19/09/2018,306616,8618779,617.90 ,123.58 ,C P C Plc,133,Theatre Management,Furniture & Equipment R&M,4002
Redditch Borough Council,19/09/2018,303874,9660,689.00 ,137.80 ,Chassis Development Services Ltd,103231,Community Parks & Open Spaces,R&M Of Vehicles,3700
Redditch Borough Council,19/09/2018,306699,DEDS SEP 18,973.76 ,0.00 ,Child Maintenance Service,60451,Rbc Balance Sheet,Payroll Deductions,1488
Redditch Borough Council,19/09/2018,297843,2194AAX163,513.26 ,102.66 ,City Plumbing Supplies Ltd (Pts),395,Crossgate Stocks,Stock Account (Cedar),1201
Redditch Borough Council,26/09/2018,306840,2194ABA209,0.00 ,178.47 ,City Plumbing Supplies Ltd (Pts),395,Crossgate Stocks,Stock Account (Cedar),1201
Redditch Borough Council,26/09/2018,306840,2194ABA209,0.01 ,0.00 ,City Plumbing Supplies Ltd (Pts),395,Crossgate Stocks,Stock Variance,1203
Redditch Borough Council,19/09/2018,306709,C/RB169856,"1,600.00 ",320.00 ,Civica Uk Limited,1233,Revenues -Rbc Only,Council Tax,3402
Redditch Borough Council,26/09/2018,306717,118178,785.00 ,157.00 ,Clarkson Autoradiators Ltd,34977,Household Waste Collection,R&M Of Vehicles,3700
Redditch Borough Council,19/09/2018,305672,AP76813-001,"8,932.36 ","1,786.47 ",Clc Contractors Ltd,61737,Hra Voids Repairs,Building Maintenance,3100
Redditch Borough Council,19/09/2018,305673,AP76812-001,"8,191.95 ","1,638.39 ",Clc Contractors Ltd,61737,Hra Voids Repairs,Building Maintenance,3100
Redditch Borough Council,19/09/2018,305674,AP76811-001,"4,992.28 ",998.46 ,Clc Contractors Ltd,61737,Hra Voids Repairs,Building Maintenance,3100
Redditch Borough Council,19/09/2018,305845,AP76927-001,"7,374.57 ","1,474.91 ",Clc Contractors Ltd,61737,Hra Voids Repairs,Building Maintenance,3100
Redditch Borough Council,26/09/2018,305767,L204296,508.33 ,101.67 ,Clearaway Limited,6594,Grounds Maint - Cemeteries,Refuse Collection/Waste Dispos,3602
Redditch Borough Council,12/09/2018,304700,INV-0036,"4,350.00 ",870.00 ,Commercially Public Ltd,102025,Property Services,Other Fees,4360
Redditch Borough Council,19/09/2018,306333,13328,"3,450.00 ",690.00 ,Cooper Mobile Services Limited,2549,Household Waste Collection,Vehicle Hire,3800
Redditch Borough Council,19/09/2018,306334,13329,"3,450.00 ",690.00 ,Cooper Mobile Services Limited,2549,Household Waste Collection,Vehicle Hire,3800
Redditch Borough Council,12/09/2018,306125,1115,"1,125.00 ",0.00 ,Create Build Learn,60044,Museums And Gallaries,Other Fees,4360
Redditch Borough Council,19/09/2018,306695,068-PD00131739,"3,192.00 ",0.00 ,Cumbernauld Rms (Accounts/Payments),1488,Corporate Staff Costs,Apprentice Levy,3048
Redditch Borough Council,19/09/2018,306695,068-PD00131739,"219,064.03 ",0.00 ,Cumbernauld Rms (Accounts/Payments),1488,Rbc Balance Sheet,Payroll Deductions,1488
Redditch Borough Council,19/09/2018,306695,068-PD00131739,30.00 ,0.00 ,Cumbernauld Rms (Accounts/Payments),1488,Rbc Balance Sheet,Sub Contractors Paid Over,2012
Redditch Borough Council,26/09/2018,307106,817427,"3,327.40 ",0.00 ,Dodd Group,7087,Rbc Balance Sheet,Disabled Facilities Grant,8701
Redditch Borough Council,26/09/2018,307108,817423,"3,327.40 ",0.00 ,Dodd Group,7087,Rbc Balance Sheet,Disabled Facilities Grant,8701
Redditch Borough Council,26/09/2018,304188,718130,"4,135.00 ",0.00 ,Doro Care Ltd  (Was Caretech Sales Uk Ltd),7424,Lifeline - Support,Furniture & Equipment Purchase,4000
Redditch Borough Council,05/09/2018,305655,118,"1,039.00 ",0.00 ,Redacted - Personal Data Protection,5065,Crematoria,Professional Fees,4350
Redditch Borough Council,05/09/2018,305870,118,"2,106.50 ",0.00 ,Redacted - Personal Data Protection,5065,Crematoria,Professional Fees,4350
Redditch Borough Council,05/09/2018,305704,800005289,"1,585.00 ",0.00 ,Dudley College Of Technology,65007,Hra Responsive Repairs,Training,3043
Redditch Borough Council,26/09/2018,307052,SI09649585,0.00 ,129.36 ,Dulux Decorator Centres,1082,Crossgate Stocks,Stock Account (Cedar),1201
Redditch Borough Council,26/09/2018,307052,SI09649585,0.03 ,0.01 ,Dulux Decorator Centres,1082,Crossgate Stocks,Stock Variance,1203
Redditch Borough Council,26/09/2018,306957,2156,"1,300.00 ",260.00 ,E & J Contractors Ltd,201,O'Door Sports & Rec Facilities,Furniture & Equipment R&M,4002
Redditch Borough Council,05/09/2018,304993,1276876658,64.75 ,12.95 ,E E Limited ****Airtime Only****,3656,Arts Development And Support,Telephones,4450
Redditch Borough Council,05/09/2018,304993,1276876658,2.75 ,0.55 ,E E Limited ****Airtime Only****,3656,Batchley Neighbourhood Office,Telephones,4450
Redditch Borough Council,05/09/2018,304993,1276876658,10.25 ,2.05 ,E E Limited ****Airtime Only****,3656,B'Grove Community Safety,Telephones,4450
Redditch Borough Council,05/09/2018,304993,1276876658,5.50 ,1.10 ,E E Limited ****Airtime Only****,3656,Bromsgrove Building Services,Telephones,4450
Redditch Borough Council,05/09/2018,304993,1276876658,2.75 ,0.55 ,E E Limited ****Airtime Only****,3656,Bromsgrove Cctv,Telephones,4450
Redditch Borough Council,05/09/2018,304993,1276876658,10.25 ,2.05 ,E E Limited ****Airtime Only****,3656,Building Better Opportunities,Telephones,4450
Redditch Borough Council,05/09/2018,304993,1276876658,20.50 ,4.10 ,E E Limited ****Airtime Only****,3656,Business Development Services,Telephones,4450
Redditch Borough Council,05/09/2018,304993,1276876658,20.50 ,4.10 ,E E Limited ****Airtime Only****,3656,Business Dev Manager,Telephones,4450
Redditch Borough Council,05/09/2018,304993,1276876658,5.50 ,1.10 ,E E Limited ****Airtime Only****,3656,Caretakers,Telephones,4450
Redditch Borough Council,05/09/2018,304993,1276876658,10.25 ,2.05 ,E E Limited ****Airtime Only****,3656,Cctv Operating Costs,Telephones,4450
Redditch Borough Council,05/09/2018,304993,1276876658,2.75 ,0.55 ,E E Limited ****Airtime Only****,3656,Cleaners Oncost,Telephones,4450
Redditch Borough Council,05/09/2018,304993,1276876658,55.00 ,11.00 ,E E Limited ****Airtime Only****,3656,Community Centres,Telephones,4450
Redditch Borough Council,05/09/2018,304993,1276876658,379.38 ,75.88 ,E E Limited ****Airtime Only****,3656,Community Development,Telephones,4450
Redditch Borough Council,05/09/2018,304993,1276876658,27.00 ,5.40 ,E E Limited ****Airtime Only****,3656,Community Parks & Open Spaces,Telephones,4450
Redditch Borough Council,05/09/2018,304993,1276876658,26.00 ,5.20 ,E E Limited ****Airtime Only****,3656,Community Safety,Telephones,4450
Redditch Borough Council,05/09/2018,304993,1276876658,22.00 ,4.40 ,E E Limited ****Airtime Only****,3656,Concessionary Travel,Telephones,4450
Redditch Borough Council,05/09/2018,304993,1276876658,10.25 ,2.05 ,E E Limited ****Airtime Only****,3656,Cultural Services Manager,Telephones,4450
Redditch Borough Council,05/09/2018,304993,1276876658,2.75 ,0.55 ,E E Limited ****Airtime Only****,3656,Data Base & Hsg Performance,Telephones,4450
Redditch Borough Council,05/09/2018,304993,1276876658,7.00 ,1.40 ,E E Limited ****Airtime Only****,3656,Executive Director Lec,Telephones,4450
Redditch Borough Council,05/09/2018,304993,1276876658,2.75 ,0.55 ,E E Limited ****Airtime Only****,3656,Grounds Maint - Parks,Telephones,4450
Redditch Borough Council,05/09/2018,304993,1276876658,17.25 ,3.45 ,E E Limited ****Airtime Only****,3656,Head Of Community Services,Telephones,4450
Redditch Borough Council,05/09/2018,304993,1276876658,10.25 ,2.05 ,E E Limited ****Airtime Only****,3656,Head Of Leisure & Cultural Ser,Telephones,4450
Redditch Borough Council,05/09/2018,304993,1276876658,24.25 ,4.85 ,E E Limited ****Airtime Only****,3656,Head Of Planning & Regeneratio,Telephones,4450
Redditch Borough Council,05/09/2018,304993,1276876658,431.39 ,86.27 ,E E Limited ****Airtime Only****,3656,Housing Locality Service,Telephones,4450
Redditch Borough Council,05/09/2018,304993,1276876658,60.50 ,12.10 ,E E Limited ****Airtime Only****,3656,Hra Equipment & Adaptations,Telephones,4450
Redditch Borough Council,05/09/2018,304993,1276876658,20.50 ,4.10 ,E E Limited ****Airtime Only****,3656,Hra Interim Arrangements,Telephones,4450
Redditch Borough Council,05/09/2018,304993,1276876658,78.48 ,15.70 ,E E Limited ****Airtime Only****,3656,Hra Responsive Repairs,Telephones,4450
Redditch Borough Council,05/09/2018,304993,1276876658,7.00 ,1.40 ,E E Limited ****Airtime Only****,3656,Hra S/Charge Eligible Works,Telephones,4450
Redditch Borough Council,05/09/2018,304993,1276876658,71.51 ,14.31 ,E E Limited ****Airtime Only****,3656,Hra Voids Repairs,Telephones,4450
Redditch Borough Council,05/09/2018,304993,1276876658,24.25 ,4.85 ,E E Limited ****Airtime Only****,3656,Hsg Capital,Telephones,4450
Redditch Borough Council,05/09/2018,304993,1276876658,13.75 ,2.75 ,E E Limited ****Airtime Only****,3656,Hsg Options,Telephones,4450
Redditch Borough Council,05/09/2018,304993,1276876658,2.75 ,0.55 ,E E Limited ****Airtime Only****,3656,Human Resources,Telephones,4450
Redditch Borough Council,05/09/2018,304993,1276876658,32.22 ,6.44 ,E E Limited ****Airtime Only****,3656,Indoor Sports & Rec Facilities,Telephones,4450
Redditch Borough Council,05/09/2018,304993,1276876658,84.75 ,16.95 ,E E Limited ****Airtime Only****,3656,Lifeline - Support,Telephones,4450
Redditch Borough Council,05/09/2018,304993,1276876658,387.33 ,77.47 ,E E Limited ****Airtime Only****,3656,Members Services,Telephones,4450
Redditch Borough Council,05/09/2018,304993,1276876658,2.75 ,0.55 ,E E Limited ****Airtime Only****,3656,Museums And Gallaries,Telephones,4450
Redditch Borough Council,05/09/2018,304993,1276876658,16.75 ,3.35 ,E E Limited ****Airtime Only****,3656,O'Door Sports & Rec Facilities,Telephones,4450
Redditch Borough Council,05/09/2018,304993,1276876658,30.71 ,6.14 ,E E Limited ****Airtime Only****,3656,Planned,Telephones,4450
Redditch Borough Council,05/09/2018,304993,1276876658,24.25 ,4.85 ,E E Limited ****Airtime Only****,3656,Planning Policy,Telephones,4450
Redditch Borough Council,05/09/2018,304993,1276876658,8.25 ,1.65 ,E E Limited ****Airtime Only****,3656,Public Buildings,Telephones,4450
Redditch Borough Council,05/09/2018,304993,1276876658,479.14 ,95.83 ,E E Limited ****Airtime Only****,3656,Rbc Balance Sheet,Holding/Suspense/Contra Accs,9008
Redditch Borough Council,05/09/2018,304993,1276876658,10.25 ,2.05 ,E E Limited ****Airtime Only****,3656,Rbc Vehicle Workhop,Telephones,4450
Redditch Borough Council,05/09/2018,304993,1276876658,8.25 ,1.65 ,E E Limited ****Airtime Only****,3656,Redditch Place Teams General,Telephones,4450
Redditch Borough Council,05/09/2018,304993,1276876658,31.50 ,6.29 ,E E Limited ****Airtime Only****,3656,Revenues,Telephones,4450
Redditch Borough Council,05/09/2018,304993,1276876658,20.50 ,4.10 ,E E Limited ****Airtime Only****,3656,Safer & Stronger Communities,Telephones,4450
Redditch Borough Council,05/09/2018,304993,1276876658,44.75 ,8.95 ,E E Limited ****Airtime Only****,3656,Sports Dev & Com'Ty Recreation,Telephones,4450
Redditch Borough Council,05/09/2018,304993,1276876658,10.25 ,2.05 ,E E Limited ****Airtime Only****,3656,Sports Services Manager,Telephones,4450
Redditch Borough Council,05/09/2018,304993,1276876658,5.50 ,1.10 ,E E Limited ****Airtime Only****,3656,St Davids House,Telephones,4450
Redditch Borough Council,05/09/2018,304993,1276876658,2.75 ,0.55 ,E E Limited ****Airtime Only****,3656,Theatre Management,Telephones,4450
Redditch Borough Council,05/09/2018,304993,1276876658,9.75 ,1.95 ,E E Limited ****Airtime Only****,3656,Town Hall,Telephones,4450
Redditch Borough Council,05/09/2018,304993,1276876658,22.52 ,4.50 ,E E Limited ****Airtime Only****,3656,Welfare Support,Telephones,4450
Redditch Borough Council,05/09/2018,304993,1276876658,2.75 ,0.55 ,E E Limited ****Airtime Only****,3656,Winyates Neighbourhood Office,Telephones,4450
Redditch Borough Council,05/09/2018,304993,1276876658,2.75 ,0.55 ,E E Limited ****Airtime Only****,3656,Woodrow Neighbourhood Office,Telephones,4450
Redditch Borough Council,12/09/2018,306373,RED/326881,"1,900.01 ",380.00 ,Edwards Buildbase,188,Hra Responsive Repairs,Furniture & Equipment Purchase,4000
Redditch Borough Council,05/09/2018,305046,900028864138,521.64 ,104.33 ,Enterprise Rent - A -Car,35908,Hra Voids Repairs,Vehicle Hire,3800
Redditch Borough Council,05/09/2018,305944,900029353388,521.64 ,104.33 ,Enterprise Rent - A -Car,35908,Hra Voids Repairs,Vehicle Hire,3800
Redditch Borough Council,26/09/2018,307061,900029775598,558.90 ,111.78 ,Enterprise Rent - A -Car,35908,Hra Voids Repairs,Vehicle Hire,3800
Redditch Borough Council,12/09/2018,305503,0000287385,"1,170.90 ",234.18 ,Envirovent Ltd,45,Hra Responsive Repairs,Materials,4170
Redditch Borough Council,26/09/2018,306285,0000288464,971.86 ,194.37 ,Envirovent Ltd,45,Hra Responsive Repairs,Building Maintenance,3100
Redditch Borough Council,26/09/2018,306670,0000283026,560.00 ,112.00 ,Envirovent Ltd,45,Hra Responsive Repairs,Building Maintenance,3100
Redditch Borough Council,26/09/2018,306671,0000283027,638.05 ,127.61 ,Envirovent Ltd,45,Hra Responsive Repairs,Building Maintenance,3100
Redditch Borough Council,26/09/2018,306673,0000282790,"1,270.42 ",254.08 ,Envirovent Ltd,45,Hra Responsive Repairs,Building Maintenance,3100
Redditch Borough Council,26/09/2018,306675,0000282122,755.00 ,151.00 ,Envirovent Ltd,45,Hra Responsive Repairs,Building Maintenance,3100
Redditch Borough Council,12/09/2018,306274,18103176,"1,261.85 ",252.37 ,Facultatieve Technologies,38,Crematoria,Furniture & Equipment Purchase,4000
Redditch Borough Council,19/09/2018,306598,18102119,"1,216.40 ",243.28 ,Facultatieve Technologies,38,Crematoria,Furniture & Equipment Purchase,4000
Redditch Borough Council,19/09/2018,306599,18103044,950.04 ,190.01 ,Facultatieve Technologies,38,Crematoria,Furniture & Equipment R&M,4002
Redditch Borough Council,26/09/2018,306718,18103666,"37,170.00 ","7,434.00 ",Facultatieve Technologies,38,Crematoria,Furniture & Equipment R&M,4002
Redditch Borough Council,05/09/2018,305723,15020,775.00 ,155.00 ,Fools Paradise Ltd,2400,Countryside Rec And M'Ment,Professional Fees,4350
Redditch Borough Council,19/09/2018,302734,SI-0001298,600.00 ,120.00 ,Forskills Limited,5829,Economic Development,Professional Fees,4350
Redditch Borough Council,05/09/2018,305840,SC&R/00000348,"12,098.25 ",0.00 ,Fortis Property Care,7427,Rbc Balance Sheet,Disabled Facilities Grant,8701
Redditch Borough Council,05/09/2018,305841,SC&R/00000349,"9,052.00 ",0.00 ,Fortis Property Care,7427,Rbc Balance Sheet,Disabled Facilities Grant,8701
Redditch Borough Council,19/09/2018,306563,GA1432763,10.09 ,2.02 ,Gamma Business Communications Ltd,5650,Batchley Neighbourhood Office,Telephones,4450
Redditch Borough Council,19/09/2018,306563,GA1432763,82.99 ,16.60 ,Gamma Business Communications Ltd,5650,Business Centres - Greenlands,Telephones,4450
Redditch Borough Council,19/09/2018,306563,GA1432763,67.11 ,13.43 ,Gamma Business Communications Ltd,5650,Business Centres - Rubicon,Telephones,4450
Redditch Borough Council,19/09/2018,306563,GA1432763,655.14 ,131.02 ,Gamma Business Communications Ltd,5650,Central Switchboard,Telephones,4450
Redditch Borough Council,19/09/2018,306563,GA1432763,76.09 ,15.23 ,Gamma Business Communications Ltd,5650,Community Centres,Telephones,4450
Redditch Borough Council,19/09/2018,306563,GA1432763,79.83 ,15.98 ,Gamma Business Communications Ltd,5650,Community Development,Telephones,4450
Redditch Borough Council,19/09/2018,306563,GA1432763,10.09 ,2.02 ,Gamma Business Communications Ltd,5650,Countryside Rec And M'Ment,Telephones,4450
Redditch Borough Council,19/09/2018,306563,GA1432763,53.43 ,10.68 ,Gamma Business Communications Ltd,5650,Crematoria,Telephones,4450
Redditch Borough Council,19/09/2018,306563,GA1432763,10.09 ,2.02 ,Gamma Business Communications Ltd,5650,Crossgates Depot,Telephones,4450
Redditch Borough Council,19/09/2018,306563,GA1432763,10.26 ,2.05 ,Gamma Business Communications Ltd,5650,Crossgates House,Telephones,4450
Redditch Borough Council,19/09/2018,306563,GA1432763,22.00 ,4.40 ,Gamma Business Communications Ltd,5650,Customer Support,Telephones,4450
Redditch Borough Council,19/09/2018,306563,GA1432763,54.61 ,10.91 ,Gamma Business Communications Ltd,5650,Economic Development,Telephones,4450
Redditch Borough Council,19/09/2018,306563,GA1432763,23.44 ,4.69 ,Gamma Business Communications Ltd,5650,Golf Courses,Telephones,4450
Redditch Borough Council,19/09/2018,306563,GA1432763,20.39 ,4.07 ,Gamma Business Communications Ltd,5650,Housing Locality Service,Telephones,4450
Redditch Borough Council,19/09/2018,306563,GA1432763,10.09 ,2.02 ,Gamma Business Communications Ltd,5650,Hra S/Charge Eligible Works,Telephones,4450
Redditch Borough Council,19/09/2018,306563,GA1432763,104.33 ,20.87 ,Gamma Business Communications Ltd,5650,Indoor Sports & Rec Facilities,Telephones,4450
Redditch Borough Council,19/09/2018,306563,GA1432763,27.49 ,5.49 ,Gamma Business Communications Ltd,5650,Lifeline - Support,Telephones,4450
Redditch Borough Council,19/09/2018,306563,GA1432763,32.57 ,6.51 ,Gamma Business Communications Ltd,5650,Museums And Gallaries,Telephones,4450
Redditch Borough Council,19/09/2018,306563,GA1432763,10.11 ,2.02 ,Gamma Business Communications Ltd,5650,Other Special Services,Telephones,4450
Redditch Borough Council,19/09/2018,306563,GA1432763,506.05 ,101.21 ,Gamma Business Communications Ltd,5650,Rbc It Costs,Telephones,4450
Redditch Borough Council,19/09/2018,306563,GA1432763,10.09 ,2.02 ,Gamma Business Communications Ltd,5650,Rbc Vehicle Workhop,Telephones,4450
Redditch Borough Council,19/09/2018,306563,GA1432763,37.36 ,7.47 ,Gamma Business Communications Ltd,5650,St Davids House,Telephones,4450
Redditch Borough Council,19/09/2018,306563,GA1432763,85.65 ,17.12 ,Gamma Business Communications Ltd,5650,Theatre Management,Telephones,4450
Redditch Borough Council,19/09/2018,306563,GA1432763,52.27 ,10.46 ,Gamma Business Communications Ltd,5650,Town Hall,Telephones,4450
Redditch Borough Council,05/09/2018,305649,2232,"2,800.00 ",560.00 ,Garvey Demolition Ltd,67279,Rbc Balance Sheet,Direct Payments,8132
Redditch Borough Council,05/09/2018,305709,3417/01151825,0.00 ,153.86 ,Gibbs & Dandy Timber,5603,Crossgate Stocks,Stock Account (Cedar),1201
Redditch Borough Council,19/09/2018,306655,3417/01153213,0.00 ,134.46 ,Gibbs & Dandy Timber,5603,Crossgate Stocks,Stock Account (Cedar),1201
Redditch Borough Council,19/09/2018,306668,3417/01152835,0.00 ,134.46 ,Gibbs & Dandy Timber,5603,Crossgate Stocks,Stock Account (Cedar),1201
Redditch Borough Council,05/09/2018,305699,04418,700.00 ,0.00 ,Giovanni (Behalf Of Bostin Productions Ltd),5797,Countryside Rec And M'Ment,Professional Fees,4350
Redditch Borough Council,05/09/2018,305806,162513,569.15 ,113.83 ,Global Plant Sales Ltd,6028,Redditch Place Teams General,R&M Of Vehicles,3700
Redditch Borough Council,05/09/2018,305671,INV-27010,"6,840.00 ","1,368.00 ",Grantham Coates Surveys Ltd,101855,Community Parks & Open Spaces,Grounds Maintenance,3200
Redditch Borough Council,26/09/2018,306183,INV-27018,755.00 ,151.00 ,Grantham Coates Surveys Ltd,101855,Community Parks & Open Spaces,Grounds Maintenance,3200
Redditch Borough Council,26/09/2018,307113,20044088,900.00 ,180.00 ,Greenwood Projects Ltd,103658,Rbc Balance Sheet,Contract Payments,8131
Redditch Borough Council,26/09/2018,306966,1500-310289/P,"1,730.96 ",346.19 ,Gva Ltd,65682,Business Centres - Rubicon,Rents & Service Charge,3350
Redditch Borough Council,26/09/2018,307081,1500-308606/P,"27,467.00 ","5,493.40 ",Gva Ltd,65682,Business Centres - Rubicon,Rents & Service Charge,3350
Redditch Borough Council,12/09/2018,306209,206132,0.00 ,162.72 ,Hacketts Pipeline,2105,Crossgate Stocks,Stock Account (Cedar),1201
Redditch Borough Council,12/09/2018,306209,206132,-8.98 ,-1.80 ,Hacketts Pipeline,2105,Crossgate Stocks,Stock Variance,1203
Redditch Borough Council,05/09/2018,305903,10361028,0.00 ,"4,787.10 ",Hall Fuels,6959,Crossgate Stocks,Stock Account (Cedar),1201
Redditch Borough Council,19/09/2018,306185,15709,915.00 ,183.00 ,Hall Mechanical Services Ltd,644,Hra Responsive Repairs,Building Maintenance,3100
Redditch Borough Council,05/09/2018,305925,53303,0.00 ,140.30 ,Hilltop Supplies Ltd,628,Crossgate Stocks,Stock Account (Cedar),1201
Redditch Borough Council,05/09/2018,305928,53301,0.00 ,130.90 ,Hilltop Supplies Ltd,628,Crossgate Stocks,Stock Account (Cedar),1201
Redditch Borough Council,05/09/2018,305933,53309,0.00 ,331.88 ,Hilltop Supplies Ltd,628,Crossgate Stocks,Stock Account (Cedar),1201
Redditch Borough Council,05/09/2018,305935,53311,0.00 ,127.20 ,Hilltop Supplies Ltd,628,Crossgate Stocks,Stock Account (Cedar),1201
Redditch Borough Council,05/09/2018,305936,53312,0.00 ,146.70 ,Hilltop Supplies Ltd,628,Crossgate Stocks,Stock Account (Cedar),1201
Redditch Borough Council,26/09/2018,306437,47304,"2,554.00 ",510.80 ,Howard Yarnold Ltd,621,Rbc Balance Sheet,Contract Payments,8131
Redditch Borough Council,12/09/2018,306248,40219814,"4,750.00 ",950.00 ,I & Dea Improvement And Development Agency,2842,Corporate Staff Costs,Professional Fees,4350
Redditch Borough Council,05/09/2018,305787,199,750.00 ,150.00 ,Iq Verify Ltd,64441,Cctv Operating Costs,Grants & Subscriptions,4650
Redditch Borough Council,26/09/2018,307030,83462,821.80 ,164.36 ,J Hill & Co (Engineers Melton Mowbray) Ltd,67011,Hra Responsive Repairs,Building Maintenance,3100
Redditch Borough Council,26/09/2018,307031,83463,"1,251.65 ",250.33 ,J Hill & Co (Engineers Melton Mowbray) Ltd,67011,Hra Responsive Repairs,Building Maintenance,3100
Redditch Borough Council,26/09/2018,307032,83465,"1,214.50 ",242.90 ,J Hill & Co (Engineers Melton Mowbray) Ltd,67011,Hra Responsive Repairs,Building Maintenance,3100
Redditch Borough Council,26/09/2018,307033,83464,"2,445.54 ",489.11 ,J Hill & Co (Engineers Melton Mowbray) Ltd,67011,Hra Responsive Repairs,Building Maintenance,3100
Redditch Borough Council,26/09/2018,307034,83466,808.50 ,161.70 ,J Hill & Co (Engineers Melton Mowbray) Ltd,67011,Hra Responsive Repairs,Building Maintenance,3100
Redditch Borough Council,26/09/2018,307035,83467,"1,146.50 ",229.30 ,J Hill & Co (Engineers Melton Mowbray) Ltd,67011,Hra Responsive Repairs,Building Maintenance,3100
Redditch Borough Council,26/09/2018,307036,83468,"2,315.50 ",463.10 ,J Hill & Co (Engineers Melton Mowbray) Ltd,67011,Hra Responsive Repairs,Building Maintenance,3100
Redditch Borough Council,19/09/2018,305514,R101596,-595.00 ,-119.00 ,Jack Hobbs Plumbing & Heating Suppl,306,Crossgate Stocks,Stock Account (Cedar),1201
Redditch Borough Council,26/09/2018,306129,GI953582,0.00 ,113.68 ,Jack Hobbs Plumbing & Heating Suppl,306,Crossgate Stocks,Stock Account (Cedar),1201
Redditch Borough Council,26/09/2018,306590,GI956719,0.00 ,234.00 ,Jack Hobbs Plumbing & Heating Suppl,306,Crossgate Stocks,Stock Account (Cedar),1201
Redditch Borough Council,26/09/2018,306590,GI956719,4.00 ,0.80 ,Jack Hobbs Plumbing & Heating Suppl,306,Crossgate Stocks,Stock Variance,1203
Redditch Borough Council,05/09/2018,305511,158058,"1,002.02 ",200.40 ,James Green Farm Machinery,304,Strategic Routes & Tractors,R&M Of Vehicles,3700
Redditch Borough Council,12/09/2018,305695,0705/0105787,0.00 ,143.05 ,Jewson Ltd,300,Crossgate Stocks,Stock Account (Cedar),1201
Redditch Borough Council,19/09/2018,304406,4783,"1,495.00 ",299.00 ,Kelbec Civils Ltd,4794,Hra Responsive Repairs,Grounds Maintenance,3200
Redditch Borough Council,19/09/2018,305857,4802,"41,203.15 ","8,240.63 ",Kelbec Civils Ltd,4794,Rbc Balance Sheet,Direct Payments,8132
Redditch Borough Council,19/09/2018,306634,4676,"1,135.48 ",227.10 ,Kelbec Civils Ltd,4794,Hra Responsive Repairs,Building Maintenance,3100
Redditch Borough Council,26/09/2018,305492,4775,"21,933.60 ","4,386.72 ",Kelbec Civils Ltd,4794,Other Special Services,Grounds Maintenance,3200
Redditch Borough Council,05/09/2018,305688,0001021249,"9,044.78 ","1,808.96 ",Kingdom,63839,Other Special Services,Cleaning & Supplies,3600
Redditch Borough Council,26/09/2018,306279,62325,"1,500.00 ",300.00 ,Leisure Media Company Ltd,2283,Human Resources,Professional Fees,4350
Redditch Borough Council,12/09/2018,304760,SIV246396,868.83 ,173.77 ,Les Mills Fitness Uk Ltd,6203,Indoor Sports & Rec Facilities,Other Fees,4360
Redditch Borough Council,12/09/2018,304770,SIV250803,868.83 ,173.77 ,Les Mills Fitness Uk Ltd,6203,Indoor Sports & Rec Facilities,Other Fees,4360
Redditch Borough Council,26/09/2018,305270,PRSINV00899,"3,289.30 ",657.86 ,Let'S Connect It Solutions Ltd,103154,Corporate Staff Costs,Allowances,3014
Redditch Borough Council,12/09/2018,306169,IN574/RD,700.00 ,140.00 ,Lms Events,5828,Countryside Rec And M'Ment,Furniture & Equipment Rental,4001
Redditch Borough Council,12/09/2018,305482,56908463,633.96 ,126.79 ,Magnet Contract Kitchen Solutions,66692,Hra Voids Repairs,Materials,4170
Redditch Borough Council,12/09/2018,305483,56915206,567.34 ,113.47 ,Magnet Contract Kitchen Solutions,66692,Hra Voids Repairs,Materials,4170
Redditch Borough Council,12/09/2018,305488,56904317,614.79 ,122.96 ,Magnet Contract Kitchen Solutions,66692,Hra Voids Repairs,Materials,4170
Redditch Borough Council,19/09/2018,306144,56936450,637.56 ,127.51 ,Magnet Contract Kitchen Solutions,66692,Hra Voids Repairs,Materials,4170
Redditch Borough Council,19/09/2018,306151,56925660,551.59 ,110.32 ,Magnet Contract Kitchen Solutions,66692,Hra Voids Repairs,Materials,4170
Redditch Borough Council,26/09/2018,306145,56943465,540.74 ,108.15 ,Magnet Contract Kitchen Solutions,66692,Hra Voids Repairs,Materials,4170
Redditch Borough Council,26/09/2018,306147,56941899,524.94 ,104.99 ,Magnet Contract Kitchen Solutions,66692,Hra Responsive Repairs,Materials,4170
Redditch Borough Council,26/09/2018,307110,SHOW BALANCE,"1,156.18 ",0.00 ,Magnetic Theatre Limited,65718,Theatre Management,Other Fees,4360
Redditch Borough Council,19/09/2018,306319,16988,"1,950.00 ",390.00 ,Maid Marions,5543,Other Special Services,Other Fees,4360
Redditch Borough Council,19/09/2018,306344,16989,"1,950.00 ",390.00 ,Maid Marions,5543,Other Special Services,Other Fees,4360
Redditch Borough Council,19/09/2018,306345,17086,"1,852.50 ",370.50 ,Maid Marions,5543,Other Special Services,Other Fees,4360
Redditch Borough Council,19/09/2018,306346,17089,"1,852.50 ",370.50 ,Maid Marions,5543,Other Special Services,Other Fees,4360
Redditch Borough Council,19/09/2018,306639,44 LORDSWOOD CL,650.00 ,0.00 ,Mary O'Hara,103248,Homelessness Administration,Grants & Subscriptions,4650
Redditch Borough Council,12/09/2018,305460,IN25274,377.31 ,75.47 ,Matrix Scm Ltd,5367,Customer Support,Agency Staff,3020
Redditch Borough Council,12/09/2018,305460,IN25274,237.01 ,47.40 ,Matrix Scm Ltd,5367,Data Base & Hsg Performance,Agency Staff,3020
Redditch Borough Council,12/09/2018,305460,IN25274,"1,536.98 ",307.39 ,Matrix Scm Ltd,5367,Household Waste Collection,Agency Staff,3020
Redditch Borough Council,12/09/2018,305460,IN25274,"4,029.78 ",806.02 ,Matrix Scm Ltd,5367,Housing Locality Service,Agency Staff,3020
Redditch Borough Council,12/09/2018,305460,IN25274,"2,993.03 ",598.61 ,Matrix Scm Ltd,5367,Hra Responsive Repairs,Agency Staff,3020
Redditch Borough Council,12/09/2018,305460,IN25274,"2,021.62 ",404.32 ,Matrix Scm Ltd,5367,Hra Voids Repairs,Agency Staff,3020
Redditch Borough Council,12/09/2018,305460,IN25274,"1,280.41 ",256.07 ,Matrix Scm Ltd,5367,Hsg Options,Agency Staff,3020
Redditch Borough Council,12/09/2018,305460,IN25274,"3,566.81 ",713.35 ,Matrix Scm Ltd,5367,Planned,Agency Staff,3020
Redditch Borough Council,12/09/2018,305460,IN25274,"1,230.00 ",246.00 ,Matrix Scm Ltd,5367,Welfare Support,Agency Staff,3020
Redditch Borough Council,12/09/2018,305684,IN25367,692.29 ,138.47 ,Matrix Scm Ltd,5367,Community Centres,Agency Staff,3020
Redditch Borough Council,12/09/2018,305684,IN25367,383.71 ,76.75 ,Matrix Scm Ltd,5367,Customer Support,Agency Staff,3020
Redditch Borough Council,12/09/2018,305684,IN25367,134.43 ,26.89 ,Matrix Scm Ltd,5367,Data Base & Hsg Performance,Agency Staff,3020
Redditch Borough Council,12/09/2018,305684,IN25367,"1,019.72 ",203.94 ,Matrix Scm Ltd,5367,Household Waste Collection,Agency Staff,3020
Redditch Borough Council,12/09/2018,305684,IN25367,"2,738.22 ",547.69 ,Matrix Scm Ltd,5367,Housing Locality Service,Agency Staff,3020
Redditch Borough Council,12/09/2018,305684,IN25367,"1,278.64 ",255.74 ,Matrix Scm Ltd,5367,Hra Responsive Repairs,Agency Staff,3020
Redditch Borough Council,12/09/2018,305684,IN25367,"1,795.42 ",359.09 ,Matrix Scm Ltd,5367,Hra Voids Repairs,Agency Staff,3020
Redditch Borough Council,12/09/2018,305684,IN25367,"2,824.95 ",565.00 ,Matrix Scm Ltd,5367,Hsg Options,Agency Staff,3020
Redditch Borough Council,12/09/2018,305684,IN25367,"2,137.43 ",427.50 ,Matrix Scm Ltd,5367,Planned,Agency Staff,3020
Redditch Borough Council,19/09/2018,306422,IN25460,692.27 ,138.47 ,Matrix Scm Ltd,5367,Community Centres,Agency Staff,3020
Redditch Borough Council,19/09/2018,306422,IN25460,287.78 ,57.56 ,Matrix Scm Ltd,5367,Customer Support,Agency Staff,3020
Redditch Borough Council,19/09/2018,306422,IN25460,261.77 ,52.35 ,Matrix Scm Ltd,5367,Data Base & Hsg Performance,Agency Staff,3020
Redditch Borough Council,19/09/2018,306422,IN25460,"1,019.72 ",203.94 ,Matrix Scm Ltd,5367,Household Waste Collection,Agency Staff,3020
Redditch Borough Council,19/09/2018,306422,IN25460,"3,835.21 ",767.09 ,Matrix Scm Ltd,5367,Housing Locality Service,Agency Staff,3020
Redditch Borough Council,19/09/2018,306422,IN25460,140.33 ,28.07 ,Matrix Scm Ltd,5367,Hra Equipment & Adaptations,Agency Staff,3020
Redditch Borough Council,19/09/2018,306422,IN25460,"4,728.41 ",945.72 ,Matrix Scm Ltd,5367,Hra Responsive Repairs,Agency Staff,3020
Redditch Borough Council,19/09/2018,306422,IN25460,"3,841.84 ",768.39 ,Matrix Scm Ltd,5367,Hra Voids Repairs,Agency Staff,3020
Redditch Borough Council,19/09/2018,306422,IN25460,"2,095.37 ",419.07 ,Matrix Scm Ltd,5367,Hsg Options,Agency Staff,3020
Redditch Borough Council,19/09/2018,306422,IN25460,"3,268.47 ",653.69 ,Matrix Scm Ltd,5367,Planned,Agency Staff,3020
Redditch Borough Council,26/09/2018,306579,INV486753,717.00 ,100.20 ,Maxwell Amenity Ltd ( Als ),767,Grounds Maint - Parks,Materials,4170
Redditch Borough Council,05/09/2018,303006,1373342,"1,584.00 ",316.80 ,Mcd Kidderminster,255,Hra Equipment & Adaptations,Materials,4170
Redditch Borough Council,05/09/2018,305707,118790,872.55 ,174.51 ,Mercia Waste Management,610,Hra Voids Repairs,Refuse Collection/Waste Dispos,3602
Redditch Borough Council,26/09/2018,294440,118097,"2,352.50 ",470.50 ,Mercia Waste Management,610,Hra Voids Repairs,Refuse Collection/Waste Dispos,3602
Redditch Borough Council,26/09/2018,298618,118350,"2,423.75 ",484.75 ,Mercia Waste Management,610,Hra Voids Repairs,Refuse Collection/Waste Dispos,3602
Redditch Borough Council,13/09/2018,306571,COMP MONEIS,"388,920.00 ",0.00 ,Mfg Solicitors,7017,Rbc Balance Sheet,Building - Purchase,8102
Redditch Borough Council,12/09/2018,306230,606,874.00 ,0.00 ,Redacted - Personal Data Protection,54700,Crematoria,Professional Fees,4350
Redditch Borough Council,26/09/2018,306879,611,532.00 ,0.00 ,Redacted - Personal Data Protection,54700,Crematoria,Professional Fees,4350
Redditch Borough Council,19/09/2018,306637,BAL DUE,"2,531.19 ",0.00 ,Mrc Enterprises Ltd,67344,Theatre Management,Other Fees,4360
Redditch Borough Council,06/09/2018,306190,132 MT PLEASANT,700.00 ,0.00 ,Mrs Muran,103484,Homelessness Administration,Grants & Subscriptions,4650
Redditch Borough Council,05/09/2018,305700,0190/00052468,0.00 ,144.00 ,N & C Building Products Ltd,1160,Crossgate Stocks,Stock Account (Cedar),1201
Redditch Borough Council,06/09/2018,306189,AUG 18 RBC,"7,347.17 ",0.00 ,National Westminster Bank Plc,6015,Rbc Balance Sheet,Holding/Suspense/Contra Accs,9008
Redditch Borough Council,05/09/2018,304627,32810,"1,656.28 ",331.26 ,Niyaa People Limited,7093,Planned,Agency Staff,3020
Redditch Borough Council,05/09/2018,304716,32833,"1,049.95 ",209.99 ,Niyaa People Limited,7093,Planned,Agency Staff,3020
Redditch Borough Council,05/09/2018,305115,32912,"1,124.95 ",224.99 ,Niyaa People Limited,7093,Planned,Agency Staff,3020
Redditch Borough Council,05/09/2018,305132,32907,"1,690.43 ",338.09 ,Niyaa People Limited,7093,Planned,Agency Staff,3020
Redditch Borough Council,05/09/2018,305133,32903,"1,114.29 ",222.86 ,Niyaa People Limited,7093,Planned,Agency Staff,3020
Redditch Borough Council,05/09/2018,305134,32902,634.43 ,126.89 ,Niyaa People Limited,7093,Planned,Agency Staff,3020
Redditch Borough Council,05/09/2018,305780,931415644,503.38 ,100.68 ,Niyaa People Limited,7093,Planned,Agency Staff,3020
Redditch Borough Council,12/09/2018,305778,931415644,"1,656.28 ",331.26 ,Niyaa People Limited,7093,Planned,Agency Staff,3020
Redditch Borough Council,12/09/2018,305779,931415644,995.91 ,199.18 ,Niyaa People Limited,7093,Planned,Agency Staff,3020
Redditch Borough Council,12/09/2018,306156,931415644,756.41 ,151.28 ,Niyaa People Limited,7093,Planned,Agency Staff,3020
Redditch Borough Council,12/09/2018,306157,931415644,"1,314.78 ",262.96 ,Niyaa People Limited,7093,Planned,Agency Staff,3020
Redditch Borough Council,12/09/2018,306237,33455,558.52 ,111.70 ,Niyaa People Limited,7093,Planned,Agency Staff,3020
Redditch Borough Council,19/09/2018,306365,33477,805.21 ,161.04 ,Niyaa People Limited,7093,Planned,Agency Staff,3020
Redditch Borough Council,19/09/2018,306367,33480,"1,690.43 ",338.09 ,Niyaa People Limited,7093,Planned,Agency Staff,3020
Redditch Borough Council,26/09/2018,306369,32832,756.41 ,151.28 ,Niyaa People Limited,7093,Planned,Agency Staff,3020
Redditch Borough Council,19/09/2018,299799,SI/04411140,"1,291.00 ",258.20 ,Nomix Enviro Limited,5051,Crossgate Stocks,Stock Account (Cedar),1201
Redditch Borough Council,26/09/2018,305498,91410701,"2,440.00 ",488.00 ,Northgate Public Services (Uk) Limited,577,Welfare Support,Agency Staff,3020
Redditch Borough Council,26/09/2018,305987,91410926,"1,677.50 ",335.50 ,Northgate Public Services (Uk) Limited,577,Welfare Support,Agency Staff,3020
Redditch Borough Council,05/09/2018,305815,SL05022916INV,"1,316.90 ",263.38 ,Northgate Vehicle Hire Ltd,5573,Hra Voids Repairs,Vehicle Hire,3800
Redditch Borough Council,19/09/2018,305545,18080344,"2,669.16 ",533.83 ,Novus Property Solutions Ltd,67211,Rbc Balance Sheet,Useable Capital Receipts Hra,2407
Redditch Borough Council,26/09/2018,305666,18081041,"12,076.92 ","2,415.38 ",Novus Property Solutions Ltd,67211,Hra Responsive Repairs,Building Maintenance,3100
Redditch Borough Council,12/09/2018,306378,NH18821,"1,500.00 ",300.00 ,Now Hire,6333,Countryside Rec And M'Ment,Professional Fees,4350
Redditch Borough Council,12/09/2018,306262,1ST INS 18/19,"3,000.00 ",0.00 ,Onside Independent Advocacy,7162,Grants To Vol Sector,Grants & Subscriptions,4650
Redditch Borough Council,05/09/2018,305539,OE3556,"2,822.34 ",564.47 ,Orton Electrical Services Limited,64970,Hra Responsive Repairs,Building Maintenance,3100
Redditch Borough Council,05/09/2018,305540,OE3634,"2,963.98 ",592.80 ,Orton Electrical Services Limited,64970,Hra Responsive Repairs,Building Maintenance,3100
Redditch Borough Council,05/09/2018,305541,OE3630,"4,331.64 ",866.33 ,Orton Electrical Services Limited,64970,Hra Responsive Repairs,Building Maintenance,3100
Redditch Borough Council,19/09/2018,305853,OE3711,"1,600.70 ",320.14 ,Orton Electrical Services Limited,64970,Hra Responsive Repairs,Building Maintenance,3100
Redditch Borough Council,19/09/2018,306428,OE3743,"1,900.76 ",380.15 ,Orton Electrical Services Limited,64970,Hra Interim Arrangements,Professional Fees,4350
Redditch Borough Council,19/09/2018,306431,OE3744,"1,201.83 ",240.37 ,Orton Electrical Services Limited,64970,Hra Interim Arrangements,Professional Fees,4350
Redditch Borough Council,19/09/2018,306432,OE3745,"2,004.95 ",400.99 ,Orton Electrical Services Limited,64970,Hra Interim Arrangements,Professional Fees,4350
Redditch Borough Council,19/09/2018,306433,OE3746,"2,014.25 ",402.85 ,Orton Electrical Services Limited,64970,Hra Interim Arrangements,Professional Fees,4350
Redditch Borough Council,19/09/2018,306434,OE3747,"1,396.06 ",279.21 ,Orton Electrical Services Limited,64970,Hra Interim Arrangements,Professional Fees,4350
Redditch Borough Council,19/09/2018,306435,OE3750,"3,758.35 ",751.67 ,Orton Electrical Services Limited,64970,Hra S/Charge Eligible Works,Building Maintenance,3100
Redditch Borough Council,26/09/2018,304631,OE353Q,"85,822.42 ","17,164.48 ",Orton Electrical Services Limited,64970,Rbc Balance Sheet,Contract Payments,8131
Redditch Borough Council,12/09/2018,306267,QCV WEEK36 18,640.00 ,0.00 ,Paypoint Plc (Qcv),7105,Rent-Rebates,Other Fees,4360
Redditch Borough Council,05/09/2018,305838,9Y(AUGUST2018),690.00 ,0.00 ,Redacted - Personal Data Protection,5257,Indoor Sports & Rec Facilities,Agency Staff,3020
Redditch Borough Council,12/09/2018,306134,08/18,520.00 ,0.00 ,Redacted - Personal Data Protection,7036,Indoor Sports & Rec Facilities,Agency Staff,3020
Redditch Borough Council,12/09/2018,306379,9505,"1,995.00 ",399.00 ,Pilat Hr Solutions,2671,Human Resources,Ict,4500
Redditch Borough Council,05/09/2018,305843,76802348,"19,915.23 ","3,983.05 ",Place Partnership Limited,61388,Rbc Balance Sheet,Contract Payments,8131
Redditch Borough Council,05/09/2018,305844,76801987,"13,562.57 ","2,712.51 ",Place Partnership Limited,61388,Rbc Balance Sheet,Contract Payments,8131
Redditch Borough Council,05/09/2018,296510,PIPJNV-0274,"7,721.00 ","1,544.20 ",Policy In Practice,67301,Revenues- Bdc Only,Professional Fees,4350
Redditch Borough Council,05/09/2018,296510,PIPJNV-0274,"7,721.00 ","1,544.20 ",Policy In Practice,67301,Revenues -Rbc Only,Professional Fees,4350
Redditch Borough Council,05/09/2018,305897,14097,555.50 ,111.10 ,Practical Care Products Ltd,391,Hra Voids Repairs,Materials,4170
Redditch Borough Council,19/09/2018,306584,14117,578.00 ,115.60 ,Practical Care Products Ltd,391,Hra Equipment & Adaptations,Materials,4170
Redditch Borough Council,26/09/2018,306863,14144,525.50 ,105.10 ,Practical Care Products Ltd,391,Hra Equipment & Adaptations,Materials,4170
Redditch Borough Council,26/09/2018,306864,14145,525.50 ,105.10 ,Practical Care Products Ltd,391,Hra Voids Repairs,Materials,4170
Redditch Borough Council,26/09/2018,306890,14073,555.50 ,111.10 ,Practical Care Products Ltd,391,Hra Equipment & Adaptations,Materials,4170
Redditch Borough Council,26/09/2018,302986,141843,"1,291.21 ",258.24 ,R & H Electric (Redditch) Ltd,374,Public Buildings,Materials,4170
Redditch Borough Council,05/09/2018,305986,52-60,828.46 ,0.00 ,R D Rogers Butchers,373,St Davids Hse Luncheon Club,Catering Provisions,4200
Redditch Borough Council,12/09/2018,305850,ROUND 2 18-19,500.00 ,0.00 ,Redditch & Bromsgrove Sea Cadets,2622,Grants To Vol Sector,Grants & Subscriptions,4650
Redditch Borough Council,12/09/2018,305685,15,"6,750.00 ",0.00 ,Redditch Nightstop,1583,Homelessness Administration,Grants & Subscriptions,4650
Redditch Borough Council,05/09/2018,305861,119 PATCH LANE.,860.00 ,0.00 ,Redditch Reach Cic,61485,Homelessness Administration,Grants & Subscriptions,4650
Redditch Borough Council,19/09/2018,306287,1065048,"1,441.65 ",288.33 ,Redditch Skip Hire Ltd,984,Hra Responsive Repairs,Refuse Collection/Waste Dispos,3602
Redditch Borough Council,26/09/2018,306289,1065050,"1,490.25 ",298.05 ,Redditch Skip Hire Ltd,984,Rbc Hedgecutting,Refuse Collection/Waste Dispos,3602
Redditch Borough Council,12/09/2018,305784,139977,"3,600.00 ",720.00 ,Ridge Llp,103197,Rbc Balance Sheet,Contract Payments,8131
Redditch Borough Council,05/09/2018,305842,ROUND 2 18/19,500.00 ,0.00 ,Round Midnight,66281,Grants To Vol Sector,Grants & Subscriptions,4650
Redditch Borough Council,19/09/2018,306180,9057201283,"5,628.56 ","1,124.53 ",Royal Mail Group Ltd,6135,Register Of Electors,Postage,4400
Redditch Borough Council,12/09/2018,305501,40771,645.00 ,129.00 ,S W A T Gas Services Ltd,6139,Planned,Training,3043
Redditch Borough Council,12/09/2018,306176,AUG18,560.00 ,0.00 ,Redacted - Personal Data Protection,5301,Indoor Sports & Rec Facilities,Agency Staff,3020
Redditch Borough Council,05/09/2018,302533,12018-06,556.50 ,0.00 ,Scottish Water Business Stream,102489,Business Centres - Hemming Roa,Water Charges,3450
Redditch Borough Council,05/09/2018,302533,12018-06,"1,905.22 ",0.00 ,Scottish Water Business Stream,102489,Church Hill Shopping Centre,Water Charges,3450
Redditch Borough Council,05/09/2018,302533,12018-06,556.50 ,0.00 ,Scottish Water Business Stream,102489,Woodrow Shopping Centre,Water Charges,3450
Redditch Borough Council,05/09/2018,305686,2018-08,103.81 ,0.00 ,Scottish Water Business Stream,102489,Allotments,Water Charges,3450
Redditch Borough Council,05/09/2018,305686,2018-08,"1,283.73 ",0.00 ,Scottish Water Business Stream,102489,Business Centres - Rubicon,Water Charges,3450
Redditch Borough Council,05/09/2018,305686,2018-08,"8,099.13 ",0.00 ,Scottish Water Business Stream,102489,Community Centres,Water Charges,3450
Redditch Borough Council,05/09/2018,305686,2018-08,"2,917.26 ",0.00 ,Scottish Water Business Stream,102489,Crossgates Depot,Water Charges,3450
Redditch Borough Council,05/09/2018,305686,2018-08,130.55 ,0.00 ,Scottish Water Business Stream,102489,Economic Development,Water Charges,3450
Redditch Borough Council,05/09/2018,305686,2018-08,"2,322.47 ",0.00 ,Scottish Water Business Stream,102489,Golf Courses,Water Charges,3450
Redditch Borough Council,05/09/2018,305686,2018-08,"6,374.55 ",0.00 ,Scottish Water Business Stream,102489,Indoor Sports & Rec Facilities,Water Charges,3450
Redditch Borough Council,05/09/2018,305686,2018-08,363.10 ,0.00 ,Scottish Water Business Stream,102489,Museums And Gallaries,Water Charges,3450
Redditch Borough Council,05/09/2018,305686,2018-08,684.94 ,0.00 ,Scottish Water Business Stream,102489,O'Door Sports & Rec Facilities,Water Charges,3450
Redditch Borough Council,05/09/2018,305686,2018-08,161.48 ,0.00 ,Scottish Water Business Stream,102489,Other Special Services,Water Charges,3450
Redditch Borough Council,05/09/2018,305686,2018-08,253.81 ,0.00 ,Scottish Water Business Stream,102489,Redditch Place Teams General,Water Charges,3450
Redditch Borough Council,05/09/2018,305686,2018-08,"4,187.89 ",0.00 ,Scottish Water Business Stream,102489,St Davids House,Water Charges,3450
Redditch Borough Council,05/09/2018,305686,2018-08,"1,020.74 ",0.00 ,Scottish Water Business Stream,102489,Theatre Management,Water Charges,3450
Redditch Borough Council,05/09/2018,305686,2018-08,"3,000.71 ",0.00 ,Scottish Water Business Stream,102489,Town Hall,Water Charges,3450
Redditch Borough Council,05/09/2018,305686,2018-08,141.47 ,0.00 ,Scottish Water Business Stream,102489,Winyates Neighbourhood Office,Water Charges,3450
Redditch Borough Council,19/09/2018,306578,13325,"1,100.00 ",220.00 ,Shaw Loos Ltd,335,Countryside Rec And M'Ment,Furniture & Equipment Rental,4001
Redditch Borough Council,26/09/2018,307105,32320,"4,122.36 ",0.00 ,Snape Construction,6606,Rbc Balance Sheet,Disabled Facilities Grant,8701
Redditch Borough Council,26/09/2018,307107,31044,"1,070.00 ",0.00 ,Snape Construction,6606,Rbc Balance Sheet,Disabled Facilities Grant,8701
Redditch Borough Council,12/09/2018,305659,3470768,"8,455.50 ",0.00 ,Sodexo Motivation Solutions Uk Ltd,103152,Rbc Balance Sheet,Payroll Deductions,1488
Redditch Borough Council,26/09/2018,306222,54326,"5,482.87 ","1,096.57 ",Sos Group Services Ltd,5054,Hra Responsive Repairs,Grounds Maintenance,3200
Redditch Borough Council,26/09/2018,306852,SI37504,0.00 ,"2,579.20 ",Ssi Schaefer Ltd,2278,Crossgate Stocks,Stock Account (Cedar),1201
Redditch Borough Council,19/09/2018,306613,SP18015484,"1,185.60 ",237.12 ,St John Ambulance Supplies,539,Countryside Rec And M'Ment,Professional Fees,4350
Redditch Borough Council,12/09/2018,306260,CA-009562,"2,747.00 ",0.00 ,Stannah Lift Services Ltd,533,Rbc Balance Sheet,Disabled Facilities Grant,8701
Redditch Borough Council,12/09/2018,306261,CA-009680,"2,547.00 ",0.00 ,Stannah Lift Services Ltd,533,Rbc Balance Sheet,Disabled Facilities Grant,8701
Redditch Borough Council,05/09/2018,305448,18-009,800.00 ,160.00 ,Steve Haskey Design Ltd,6853,Hra Voids Repairs,Professional Fees,4350
Redditch Borough Council,26/09/2018,304387,SWINV010640,"1,287.20 ",257.44 ,Swim England Awards (Asa),91,Indoor Sports & Rec Facilities,Furniture & Equipment Purchase,4000
Redditch Borough Council,26/09/2018,306633,536,730.00 ,146.00 ,Tec Quality Limited,508,Lifeline - Support,Advertising Publicity & Prom,4700
Redditch Borough Council,26/09/2018,306244,8599,750.00 ,150.00 ,The Speakers Agency,103480,Safer & Stronger Communities,Other Fees,4360
Redditch Borough Council,26/09/2018,306308,SOP7617,"13,821.25 ","2,764.25 ",Total Integrated Solutions Limited,64246,Cctv Operating Costs,Furniture & Equipment R&M,4002
Redditch Borough Council,19/09/2018,306638,1ST INST 18/19,"5,000.00 ",0.00 ,Touchstones Support Cic,6165,Grants To Vol Sector,Grants & Subscriptions,4650
Redditch Borough Council,12/09/2018,305873,INV314279,"1,315.00 ",263.00 ,Tpg Disable Aids,242,Rbc Balance Sheet,Contract Payments,8131
Redditch Borough Council,19/09/2018,306627,266081,"1,056.00 ",211.21 ,Trafalgar Van Mount,6534,Strategic Routes & Tractors,R&M Of Vehicles,3700
Redditch Borough Council,05/09/2018,305830,RCS727971,650.00 ,130.00 ,Truckstop Hawkes,463,Household Waste Collection,R&M Of Vehicles,3700
Redditch Borough Council,05/09/2018,305740,228969,160.10 ,32.02 ,Tudor Environmental,461,Community Centres,Furniture & Equipment Purchase,4000
Redditch Borough Council,05/09/2018,305740,228969,614.49 ,122.90 ,Tudor Environmental,461,Grounds Maint - Parks,Furniture & Equipment Purchase,4000
Redditch Borough Council,19/09/2018,306122,30036709,"3,104.40 ",620.88 ,Tunstall  Limited,459,Lifeline - Support,Furniture & Equipment R&M,4002
Redditch Borough Council,05/09/2018,305939,22718,575.00 ,115.00 ,Unique Systems (Av) Ltd,63981,Indoor Sports & Rec Facilities,Furniture & Equipment R&M,4002
Redditch Borough Council,19/09/2018,306696,SEP DEDS 18,"1,267.50 ",0.00 ,Unison West Midlands Regional Centre,1510,Rbc Balance Sheet,Payroll Deductions,1488
Redditch Borough Council,05/09/2018,305867,U1567735,"4,415.00 ",0.00 ,University Of Warwick,67392,Finance,Training,3043
Redditch Borough Council,19/09/2018,306597,INV002195,"7,158.52 ","1,431.70 ",V4 Services Ltd,67076,Head Of Leisure & Cultural Ser,Professional Fees,4350
Redditch Borough Council,19/09/2018,304782,23194,513.43 ,102.69 ,Vale Engineering (York) Ltd,64915,Redditch Place Teams General,R&M Of Vehicles,3700
Redditch Borough Council,19/09/2018,306612,8244,"1,151.50 ",230.30 ,Vale Office Interiors,1645,Redditch Place Teams General,Furniture & Equipment R&M,4002
Redditch Borough Council,05/09/2018,302945,20743,"3,314.00 ",0.00 ,Vernon Print & Design,1455,Theatre Management,Photocopying  & Print,4300
Redditch Borough Council,26/09/2018,306424,293139-125,"11,197.67 ","2,225.53 ",Virgin Media Payments Limited,507,Rbc It Costs,Ict,4500
Redditch Borough Council,05/09/2018,305509,24722,990.00 ,198.00 ,Where Next Association,418,Redditch Place Teams General,Materials,4170
Redditch Borough Council,05/09/2018,304699,IN00067292,"2,511.00 ",502.20 ,Worcestershire County Council,195,Land Charges,Other Fees,4360
Redditch Borough Council,26/09/2018,306282,IN00067259,"10,000.00 ",0.00 ,Worcestershire County Council,195,Corporate Activities,Other Fees,4360
Redditch Borough Council,19/09/2018,306694,MONTH 5 DEDS,"23,250.00 ",0.00 ,Worcestershire County Council,5371,Non - Distributable Costs,Employee Expenses,3011
Redditch Borough Council,19/09/2018,306694,MONTH 5 DEDS,"50,151.31 ",0.00 ,Worcestershire County Council,5371,Rbc Balance Sheet,Payroll Deductions,1488
Redditch Borough Council,05/09/2018,305871,INV 80021439,"1,311.66 ",262.33 ,Wyre Forest District Council,1922,Community Parks & Open Spaces,Grounds Maintenance,3200
Redditch Borough Council,19/09/2018,306636,PCC GRANT,"11,569.70 ",0.00 ,Wyre Forest District Council,1922,Safer & Stronger Communities,Other Fees,4360
Redditch Borough Council,26/09/2018,306206,27787,"4,791.66 ",958.33 ,Ymca,661,Community Development,Salaries,3000
Redditch Borough Council,26/09/2018,306894,DELIVERYNOTENO,"1,441.90 ",273.26 ,Zoggs Retail,5823,Indoor Sports & Rec Facilities,Materials,4170
,,,,"3,260,880.73 ","464,750.43 ",,,,,
